[Event "Early-Titled-Tuesday-Blitz-February-06-2024"]
[Site "Chess.com"]
[Date "2024.02.06"]
[Round "6"]
[White "MdChess1734"]
[Black "Canal_Showdrez"]
[Result "1-0"]
[WhiteElo "2386"]
[BlackElo "2047"]
[TimeControl "180+1"]
[EndTime "9:05:52 PST"]
[Termination "MdChess1734 won by resignation"]

1. e4 {[%clk 0:02:57.3]} 1... c5 {[%clk 0:02:59.2]} 2. Nf3 {[%clk 0:02:55.9]}
2... Nc6 {[%clk 0:02:58.7]} 3. d4 {[%clk 0:02:55.3]} 3... cxd4 {[%clk
0:02:59.6]} 4. Nxd4 {[%clk 0:02:55.5]} 4... Nf6 {[%clk 0:02:59.4]} 5. Nc3 {[%clk
0:02:55.1]} 5... e5 {[%clk 0:02:58.9]} 6. Ndb5 {[%clk 0:02:55.1]} 6... d6 {[%clk
0:02:58.7]} 7. Bg5 {[%clk 0:02:55.2]} 7... a6 {[%clk 0:02:58.1]} 8. Na3 {[%clk
0:02:54.9]} 8... b5 {[%clk 0:02:58.1]} 9. Nd5 {[%clk 0:02:54.3]} 9... Be7 {[%clk
0:02:58.3]} 10. Bxf6 {[%clk 0:02:54.3]} 10... Bxf6 {[%clk 0:02:49.8]} 11. c3
{[%clk 0:02:54.9]} 11... Bg5 {[%clk 0:02:48.9]} 12. Nc2 {[%clk 0:02:55.3]} 12...
O-O {[%clk 0:02:47.9]} 13. a4 {[%clk 0:02:55.1]} 13... Rb8 {[%clk 0:02:45]} 14.
axb5 {[%clk 0:02:53.4]} 14... axb5 {[%clk 0:02:45.9]} 15. Bd3 {[%clk 0:02:43.7]}
15... f5 {[%clk 0:02:43.2]} 16. exf5 {[%clk 0:02:33.3]} 16... Bxf5 {[%clk
0:02:44.1]} 17. Bxf5 {[%clk 0:02:33.1]} 17... Rxf5 {[%clk 0:02:43.5]} 18. Qg4
{[%clk 0:02:32.6]} 18... Rf7 {[%clk 0:02:30.9]} 19. O-O {[%clk 0:02:30.9]} 19...
Bh6 {[%clk 0:01:35.2]} 20. Ra6 {[%clk 0:02:20.4]} 20... Ne7 {[%clk 0:01:32.3]}
21. Qe6 {[%clk 0:02:07.1]} 21... Nxd5 {[%clk 0:01:18.3]} 22. Qxd5 {[%clk
0:02:06.8]} 22... Rb6 {[%clk 0:01:11.2]} 23. Ra7 {[%clk 0:02:06.3]} 23... Qe8
{[%clk 0:01:00.1]} 24. Rfa1 {[%clk 0:01:56.3]} 24... Rb8 {[%clk 0:00:47.3]} 25.
Rc7 {[%clk 0:01:23.2]} 25... Rc8 {[%clk 0:00:29.3]} 26. Rxc8 {[%clk 0:01:21.6]}
26... Qxc8 {[%clk 0:00:28.9]} 27. Ra8 {[%clk 0:01:21.1]} 1-0

[Event "Early-Titled-Tuesday-Blitz-February-06-2024"]
[Site "Chess.com"]
[Date "2024.02.06"]
[Round "6"]
[White "FredddieCroderg"]
[Black "Caroexpert"]
[Result "0-1"]
[WhiteElo "2372"]
[BlackElo "2568"]
[TimeControl "180+1"]
[EndTime "9:05:55 PST"]
[Termination "Caroexpert won by resignation"]

1. e4 {[%clk 0:03:00.9]} 1... c6 {[%clk 0:02:05.9]} 2. d4 {[%clk 0:03:00.1]}
2... g6 {[%clk 0:02:03.9]} 3. h4 {[%clk 0:02:54.3]} 3... h5 {[%clk 0:02:01.2]}
4. Bg5 {[%clk 0:02:53]} 4... d5 {[%clk 0:02:01.1]} 5. exd5 {[%clk 0:02:50]} 5...
cxd5 {[%clk 0:02:00.8]} 6. Bd3 {[%clk 0:02:49.1]} 6... Bg7 {[%clk 0:02:00.6]} 7.
c3 {[%clk 0:02:48.5]} 7... Nf6 {[%clk 0:02:00.5]} 8. Nd2 {[%clk 0:02:47.7]} 8...
O-O {[%clk 0:02:00.9]} 9. Qb3 {[%clk 0:02:46.2]} 9... Nc6 {[%clk 0:01:59.3]} 10.
Ngf3 {[%clk 0:02:45.9]} 10... Qd6 {[%clk 0:01:52.6]} 11. O-O {[%clk 0:02:43.1]}
11... Bf5 {[%clk 0:01:52.1]} 12. Bxf5 {[%clk 0:02:34.9]} 12... gxf5 {[%clk
0:01:53]} 13. Rfe1 {[%clk 0:02:33.1]} 13... Ne4 {[%clk 0:01:52.8]} 14. Nf1
{[%clk 0:02:29.3]} 14... Kh8 {[%clk 0:01:28.4]} 15. g3 {[%clk 0:02:23.3]} 15...
Rg8 {[%clk 0:01:27.5]} 16. Bf4 {[%clk 0:02:18.4]} 16... e5 {[%clk 0:01:27.6]}
17. dxe5 {[%clk 0:02:17.1]} 17... Nxe5 {[%clk 0:01:28.5]} 18. Nxe5 {[%clk
0:02:16.8]} 18... Bxe5 {[%clk 0:01:29.2]} 19. Bxe5+ {[%clk 0:02:11.9]} 19...
Qxe5 {[%clk 0:01:30.1]} 20. Qa4 {[%clk 0:02:00.3]} 20... f4 {[%clk 0:01:18.4]}
21. f3 {[%clk 0:01:37]} 21... fxg3 {[%clk 0:00:56.1]} 22. fxe4 {[%clk
0:01:36.5]} 22... Qf4 {[%clk 0:00:45.8]} 23. Qd4+ {[%clk 0:01:32.1]} 23... f6
{[%clk 0:00:33.2]} 24. exd5 {[%clk 0:01:31.4]} 24... Qf5 {[%clk 0:00:33.1]} 25.
Re6 {[%clk 0:01:26.3]} 25... Rg6 {[%clk 0:00:32]} 26. Qe4 {[%clk 0:01:13.6]}
26... Qf2+ {[%clk 0:00:29.7]} 27. Kh1 {[%clk 0:01:12.1]} 27... g2+ {[%clk
0:00:30.6]} 0-1

[Event "Early-Titled-Tuesday-Blitz-February-06-2024"]
[Site "Chess.com"]
[Date "2024.02.06"]
[Round "6"]
[White "WindWhistler11"]
[Black "alekroth65"]
[Result "1-0"]
[WhiteElo "2511"]
[BlackElo "2373"]
[TimeControl "180+1"]
[EndTime "9:05:55 PST"]
[Termination "WindWhistler11 won by resignation"]

1. a3 {[%clk 0:03:00.9]} 1... e5 {[%clk 0:02:54.7]} 2. c4 {[%clk 0:02:58.6]}
2... f5 {[%clk 0:02:52.9]} 3. b4 {[%clk 0:02:56.9]} 3... Nf6 {[%clk 0:02:52.4]}
4. Bb2 {[%clk 0:02:56.9]} 4... d6 {[%clk 0:02:51.7]} 5. e3 {[%clk 0:02:55.3]}
5... g6 {[%clk 0:02:51.5]} 6. d4 {[%clk 0:02:52.3]} 6... Nbd7 {[%clk 0:02:50.7]}
7. Nf3 {[%clk 0:02:45]} 7... Bg7 {[%clk 0:02:49.7]} 8. Be2 {[%clk 0:02:43]} 8...
O-O {[%clk 0:02:43.1]} 9. O-O {[%clk 0:02:41.7]} 9... e4 {[%clk 0:02:40.7]} 10.
Ne1 {[%clk 0:02:38.8]} 10... d5 {[%clk 0:02:40.7]} 11. b5 {[%clk 0:02:33]} 11...
c6 {[%clk 0:02:39.5]} 12. a4 {[%clk 0:02:32.9]} 12... g5 {[%clk 0:02:35.9]} 13.
f3 {[%clk 0:02:26.3]} 13... exf3 {[%clk 0:02:25.6]} 14. Nxf3 {[%clk 0:02:20.5]}
14... Ne4 {[%clk 0:02:23.2]} 15. Nbd2 {[%clk 0:02:12.1]} 15... Ndf6 {[%clk
0:02:21.1]} 16. Ne5 {[%clk 0:02:08.9]} 16... Qe8 {[%clk 0:02:14.3]} 17. Ba3
{[%clk 0:01:57.5]} 17... Be6 {[%clk 0:01:56.6]} 18. Bxf8 {[%clk 0:01:53.8]}
18... Bxf8 {[%clk 0:01:53]} 19. bxc6 {[%clk 0:01:50.1]} 19... bxc6 {[%clk
0:01:51.5]} 20. cxd5 {[%clk 0:01:44.9]} 20... cxd5 {[%clk 0:01:49.8]} 21. Bb5
{[%clk 0:01:40.7]} 21... Qe7 {[%clk 0:01:48]} 22. Nxe4 {[%clk 0:01:32]} 22...
Nxe4 {[%clk 0:01:48.9]} 23. Rc1 {[%clk 0:01:27.9]} 23... Bg7 {[%clk 0:01:42.2]}
24. Qc2 {[%clk 0:00:56.3]} 24... Rc8 {[%clk 0:01:32.2]} 25. Qxc8+ {[%clk
0:00:53.4]} 25... Bxc8 {[%clk 0:01:31.7]} 26. Rxc8+ {[%clk 0:00:54.3]} 26... Bf8
{[%clk 0:01:31.3]} 27. Rxf5 {[%clk 0:00:54.4]} 27... Nd6 {[%clk 0:01:28.1]} 28.
Rcxf8+ {[%clk 0:00:51.7]} 28... Qxf8 {[%clk 0:01:27.9]} 29. Rxf8+ {[%clk
0:00:52.6]} 29... Kxf8 {[%clk 0:01:27.5]} 30. Bd3 {[%clk 0:00:53.3]} 30... h6
{[%clk 0:01:24.5]} 31. Nc6 {[%clk 0:00:51.2]} 31... Nc8 {[%clk 0:01:19.5]} 32.
Ba6 {[%clk 0:00:45.2]} 32... Nb6 {[%clk 0:01:18.7]} 33. a5 {[%clk 0:00:45.3]}
33... Nc4 {[%clk 0:01:18.2]} 34. Bxc4 {[%clk 0:00:39.3]} 34... dxc4 {[%clk
0:01:19]} 35. Kf1 {[%clk 0:00:39.7]} 1-0

[Event "Early-Titled-Tuesday-Blitz-February-06-2024"]
[Site "Chess.com"]
[Date "2024.02.06"]
[Round "6"]
[White "boguszp"]
[Black "Doublekk14"]
[Result "0-1"]
[WhiteElo "2075"]
[BlackElo "2306"]
[TimeControl "180+1"]
[EndTime "9:05:56 PST"]
[Termination "Doublekk14 won by checkmate"]

1. d4 {[%clk 0:03:00.9]} 1... Nf6 {[%clk 0:02:59.4]} 2. Bf4 {[%clk 0:03:00.8]}
2... d6 {[%clk 0:02:55.2]} 3. Nc3 {[%clk 0:03:00.1]} 3... g6 {[%clk 0:02:54.8]}
4. e4 {[%clk 0:03:00.6]} 4... Bg7 {[%clk 0:02:53.8]} 5. Qd2 {[%clk 0:03:01]}
5... h6 {[%clk 0:02:48.3]} 6. O-O-O {[%clk 0:03:00.6]} 6... g5 {[%clk
0:02:47.2]} 7. Be3 {[%clk 0:03:00.2]} 7... Ng4 {[%clk 0:02:46.3]} 8. h4 {[%clk
0:02:43.6]} 8... Nxe3 {[%clk 0:02:19.5]} 9. Qxe3 {[%clk 0:02:43.7]} 9... gxh4
{[%clk 0:02:19.5]} 10. Rxh4 {[%clk 0:02:42.8]} 10... e5 {[%clk 0:02:18.8]} 11.
Qg3 {[%clk 0:02:30.1]} 11... Bf6 {[%clk 0:02:11.7]} 12. Rh1 {[%clk 0:02:12.9]}
12... exd4 {[%clk 0:02:06.2]} 13. Nd5 {[%clk 0:02:12.5]} 13... Nc6 {[%clk
0:02:04.2]} 14. f4 {[%clk 0:02:07.7]} 14... Be6 {[%clk 0:02:02.6]} 15. Bb5
{[%clk 0:02:02.4]} 15... a6 {[%clk 0:01:57.8]} 16. Bxc6+ {[%clk 0:01:43.6]}
16... bxc6 {[%clk 0:01:57.4]} 17. Nxf6+ {[%clk 0:01:43.8]} 17... Qxf6 {[%clk
0:01:56.8]} 18. e5 {[%clk 0:01:43.5]} 18... Qe7 {[%clk 0:01:35]} 19. Rxd4 {[%clk
0:01:39.7]} 19... O-O-O {[%clk 0:01:33.6]} 20. Nf3 {[%clk 0:01:26]} 20... Bd5
{[%clk 0:01:14]} 21. Rhd1 {[%clk 0:01:20.4]} 21... Bxf3 {[%clk 0:00:42.8]} 22.
Qxf3 {[%clk 0:01:16.8]} 22... dxe5 {[%clk 0:00:41.2]} 23. Rxd8+ {[%clk
0:01:08.7]} 23... Rxd8 {[%clk 0:00:40.5]} 24. Rxd8+ {[%clk 0:01:07.7]} 24...
Kxd8 {[%clk 0:00:38.7]} 25. Qxc6 {[%clk 0:01:07.6]} 25... exf4 {[%clk
0:00:37.2]} 26. Qxh6 {[%clk 0:00:57]} 26... Qe1# {[%clk 0:00:33]} 0-1

[Event "Early-Titled-Tuesday-Blitz-February-06-2024"]
[Site "Chess.com"]
[Date "2024.02.06"]
[Round "6"]
[White "UK_23"]
[Black "Ati1517"]
[Result "0-1"]
[WhiteElo "2401"]
[BlackElo "2262"]
[TimeControl "180+1"]
[EndTime "9:05:57 PST"]
[Termination "Ati1517 won by checkmate"]

1. e4 {[%clk 0:02:58.8]} 1... c5 {[%clk 0:02:59.7]} 2. Nf3 {[%clk 0:02:58.7]}
2... d6 {[%clk 0:02:59.9]} 3. d4 {[%clk 0:02:58.5]} 3... cxd4 {[%clk 0:03:00.8]}
4. Qxd4 {[%clk 0:02:59.1]} 4... Nf6 {[%clk 0:03:01.7]} 5. Be2 {[%clk 0:02:58.8]}
5... Nc6 {[%clk 0:03:01.8]} 6. Qe3 {[%clk 0:02:58.7]} 6... e6 {[%clk 0:02:57.8]}
7. O-O {[%clk 0:02:58.1]} 7... Be7 {[%clk 0:02:56.3]} 8. Rd1 {[%clk 0:02:58.1]}
8... O-O {[%clk 0:02:56.4]} 9. c4 {[%clk 0:02:58.7]} 9... Qc7 {[%clk 0:02:49.2]}
10. Nc3 {[%clk 0:02:58.2]} 10... a6 {[%clk 0:02:48.4]} 11. b3 {[%clk 0:02:57.6]}
11... b6 {[%clk 0:02:47.9]} 12. Bb2 {[%clk 0:02:57.9]} 12... Bb7 {[%clk
0:02:47.7]} 13. Rac1 {[%clk 0:02:58.6]} 13... Rfd8 {[%clk 0:02:41.8]} 14. Nd5
{[%clk 0:02:54.9]} 14... exd5 {[%clk 0:02:36.2]} 15. cxd5 {[%clk 0:02:55.8]}
15... Rdc8 {[%clk 0:02:11]} 16. dxc6 {[%clk 0:02:54.7]} 16... Bxc6 {[%clk
0:02:11.9]} 17. Nd4 {[%clk 0:02:53.5]} 17... Qb7 {[%clk 0:02:06]} 18. f3 {[%clk
0:02:33.6]} 18... d5 {[%clk 0:01:38.9]} 19. Nxc6 {[%clk 0:02:30.8]} 19... Rxc6
{[%clk 0:01:38.4]} 20. Bxf6 {[%clk 0:02:16.5]} 20... Rxc1 {[%clk 0:01:25.4]} 21.
Rxc1 {[%clk 0:02:14.2]} 21... Bxf6 {[%clk 0:01:17.9]} 22. e5 {[%clk 0:02:10.3]}
22... Be7 {[%clk 0:01:16.3]} 23. Kf1 {[%clk 0:02:07.8]} 23... Bc5 {[%clk
0:01:15.6]} 24. Qf4 {[%clk 0:02:05.4]} 24... Re8 {[%clk 0:01:13.5]} 25. Bd3
{[%clk 0:02:05.4]} 25... Qe7 {[%clk 0:01:02.6]} 26. Re1 {[%clk 0:02:03.5]} 26...
f6 {[%clk 0:00:53]} 27. e6 {[%clk 0:01:58.3]} 27... Bb4 {[%clk 0:00:43.1]} 28.
Re2 {[%clk 0:01:51.3]} 28... Qc5 {[%clk 0:00:42.4]} 29. Rc2 {[%clk 0:01:46.1]}
29... Qd6 {[%clk 0:00:39.1]} 30. Qf5 {[%clk 0:01:31.6]} 30... Qxh2 {[%clk
0:00:28.4]} 31. Qxd5 {[%clk 0:01:15.6]} 31... Qh1+ {[%clk 0:00:24.5]} 32. Kf2
{[%clk 0:01:14.7]} 32... Qe1# {[%clk 0:00:25.4]} 0-1

[Event "Early-Titled-Tuesday-Blitz-February-06-2024"]
[Site "Chess.com"]
[Date "2024.02.06"]
[Round "6"]
[White "yosephtaher"]
[Black "bazar-wokzal"]
[Result "1-0"]
[WhiteElo "2892"]
[BlackElo "2617"]
[TimeControl "180+1"]
[EndTime "9:05:58 PST"]
[Termination "yosephtaher won by resignation"]

1. d4 {[%clk 0:02:57.2]} 1... Nf6 {[%clk 0:02:59.6]} 2. Nc3 {[%clk 0:02:56.9]}
2... d5 {[%clk 0:02:59.4]} 3. Bf4 {[%clk 0:02:56.9]} 3... e6 {[%clk 0:02:59.3]}
4. Nb5 {[%clk 0:02:57.1]} 4... Na6 {[%clk 0:02:58.9]} 5. e3 {[%clk 0:02:55.9]}
5... c6 {[%clk 0:02:58.9]} 6. Nc3 {[%clk 0:02:56.2]} 6... Bb4 {[%clk 0:02:58.9]}
7. Bxa6 {[%clk 0:02:55.8]} 7... bxa6 {[%clk 0:02:58.6]} 8. Ne2 {[%clk
0:02:56.3]} 8... Ne4 {[%clk 0:02:58.1]} 9. O-O {[%clk 0:02:56.3]} 9... Bxc3
{[%clk 0:02:53.1]} 10. Nxc3 {[%clk 0:02:56]} 10... Nxc3 {[%clk 0:02:52.4]} 11.
bxc3 {[%clk 0:02:56.9]} 11... O-O {[%clk 0:02:50.5]} 12. Qd3 {[%clk 0:02:54.1]}
12... Qe7 {[%clk 0:02:29.1]} 13. Rfb1 {[%clk 0:02:50.9]} 13... f6 {[%clk
0:02:28.3]} 14. c4 {[%clk 0:02:50.5]} 14... e5 {[%clk 0:02:27.9]} 15. Bg3 {[%clk
0:02:51.1]} 15... Be6 {[%clk 0:02:06.4]} 16. dxe5 {[%clk 0:02:40.3]} 16... dxc4
{[%clk 0:02:01]} 17. Qc3 {[%clk 0:02:39.2]} 17... f5 {[%clk 0:01:51]} 18. Rd1
{[%clk 0:02:37.6]} 18... Rfb8 {[%clk 0:01:38.9]} 19. Rd6 {[%clk 0:02:35.7]}
19... Rb6 {[%clk 0:01:35.7]} 20. Rad1 {[%clk 0:02:35.2]} 20... Rab8 {[%clk
0:01:35.9]} 21. Qd4 {[%clk 0:02:35]} 21... Rb1 {[%clk 0:01:27.1]} 22. h3 {[%clk
0:02:32.3]} 22... Rxd1+ {[%clk 0:01:22.3]} 23. Qxd1 {[%clk 0:02:33.2]} 23... Rb6
{[%clk 0:01:14.4]} 24. Qd4 {[%clk 0:02:30]} 24... g5 {[%clk 0:01:08.6]} 25. f4
{[%clk 0:02:26.9]} 25... h6 {[%clk 0:01:08.4]} 26. fxg5 {[%clk 0:02:21.4]} 26...
hxg5 {[%clk 0:01:08.3]} 27. h4 {[%clk 0:02:21.4]} 27... g4 {[%clk 0:01:01.3]}
28. Qf4 {[%clk 0:02:12.9]} 28... Kg7 {[%clk 0:00:54.5]} 29. e4 {[%clk
0:02:06.7]} 29... fxe4 {[%clk 0:00:47.8]} 30. Qxe4 {[%clk 0:02:07.3]} 30... c5
{[%clk 0:00:42]} 31. Qf4 {[%clk 0:02:04.4]} 31... Rxd6 {[%clk 0:00:35.5]} 32.
exd6 {[%clk 0:02:05.3]} 32... Qf6 {[%clk 0:00:35.9]} 33. Qxf6+ {[%clk
0:02:02.1]} 33... Kxf6 {[%clk 0:00:35.8]} 34. c3 {[%clk 0:02:03]} 34... Bf7
{[%clk 0:00:29.1]} 35. Kf2 {[%clk 0:02:02]} 35... Be8 {[%clk 0:00:24.7]} 36. Ke3
{[%clk 0:02:02.1]} 36... Kf5 {[%clk 0:00:24.2]} 37. Bf4 {[%clk 0:02:00.2]} 37...
a5 {[%clk 0:00:22.7]} 38. g3 {[%clk 0:01:59.8]} 38... a4 {[%clk 0:00:22.8]} 39.
a3 {[%clk 0:01:59.9]} 39... a6 {[%clk 0:00:21.8]} 40. h5 {[%clk 0:02:00.2]}
40... Ke6 {[%clk 0:00:18.7]} 41. h6 {[%clk 0:02:00.3]} 41... Bg6 {[%clk
0:00:19]} 42. Be5 {[%clk 0:02:01]} 42... Bd3 {[%clk 0:00:16.1]} 43. Kf4 {[%clk
0:02:01.5]} 1-0

[Event "Early-Titled-Tuesday-Blitz-February-06-2024"]
[Site "Chess.com"]
[Date "2024.02.06"]
[Round "6"]
[White "TregubovP"]
[Black "Rawnsdale"]
[Result "1-0"]
[WhiteElo "2683"]
[BlackElo "2509"]
[TimeControl "180+1"]
[EndTime "9:06:09 PST"]
[Termination "TregubovP won by resignation"]

1. e4 {[%clk 0:03:00.9]} 1... c6 {[%clk 0:02:59.7]} 2. Nf3 {[%clk 0:03:00.5]}
2... d5 {[%clk 0:03:00]} 3. Nc3 {[%clk 0:03:01.1]} 3... dxe4 {[%clk 0:03:00.1]}
4. Nxe4 {[%clk 0:03:01.6]} 4... Nf6 {[%clk 0:03:01]} 5. Qe2 {[%clk 0:03:01.9]}
5... Nxe4 {[%clk 0:03:01.3]} 6. Qxe4 {[%clk 0:03:02.5]} 6... Nd7 {[%clk
0:03:02.2]} 7. Bc4 {[%clk 0:03:02.3]} 7... Nf6 {[%clk 0:03:02.7]} 8. Ne5 {[%clk
0:03:02.9]} 8... e6 {[%clk 0:03:03.4]} 9. Qf4 {[%clk 0:03:03.3]} 9... Bd6 {[%clk
0:02:54.4]} 10. d4 {[%clk 0:03:02.8]} 10... Bxe5 {[%clk 0:02:53]} 11. dxe5
{[%clk 0:02:59.8]} 11... Nd5 {[%clk 0:02:53.1]} 12. Qg3 {[%clk 0:02:58]} 12...
g6 {[%clk 0:02:08.3]} 13. O-O {[%clk 0:02:47.2]} 13... h5 {[%clk 0:02:05.7]} 14.
Bg5 {[%clk 0:02:45.8]} 14... Qb6 {[%clk 0:02:01.1]} 15. Bb3 {[%clk 0:02:42]}
15... Bd7 {[%clk 0:01:55.4]} 16. Rad1 {[%clk 0:02:32.7]} 16... Qc7 {[%clk
0:01:13.8]} 17. Qf3 {[%clk 0:02:25.5]} 17... O-O {[%clk 0:01:03.1]} 18. c4
{[%clk 0:02:12.8]} 18... Qxe5 {[%clk 0:00:55.7]} 19. Bh6 {[%clk 0:02:05.2]}
19... Nf6 {[%clk 0:00:52.4]} 20. Rfe1 {[%clk 0:01:57.3]} 20... Qf5 {[%clk
0:00:34.9]} 21. Qxf5 {[%clk 0:01:57.2]} 21... gxf5 {[%clk 0:00:35]} 22. Bg5
{[%clk 0:01:50.4]} 22... Ne4 {[%clk 0:00:34.8]} 23. Rxe4 {[%clk 0:01:50.4]}
23... fxe4 {[%clk 0:00:35.7]} 24. Rxd7 {[%clk 0:01:50.2]} 24... b6 {[%clk
0:00:31.2]} 25. Bf6 {[%clk 0:01:44.5]} 25... Kh7 {[%clk 0:00:31.1]} 26. Bc2
{[%clk 0:01:44.7]} 26... Kg6 {[%clk 0:00:30.9]} 27. Be7 {[%clk 0:01:45.2]} 27...
Rfe8 {[%clk 0:00:25.3]} 28. Bxe4+ {[%clk 0:01:45.2]} 28... f5 {[%clk 0:00:25.8]}
29. Bxc6 {[%clk 0:01:39.7]} 29... Rac8 {[%clk 0:00:25.6]} 30. Bb5 {[%clk
0:01:40.3]} 30... e5 {[%clk 0:00:22.2]} 31. h4 {[%clk 0:01:36.5]} 31... f4
{[%clk 0:00:18.1]} 32. Rd6+ {[%clk 0:01:33.1]} 32... Kf7 {[%clk 0:00:18.3]} 33.
Bg5 {[%clk 0:01:32.8]} 33... Re6 {[%clk 0:00:13.8]} 34. Rd7+ {[%clk 0:01:24.5]}
34... Kg8 {[%clk 0:00:13.4]} 35. Rxa7 {[%clk 0:01:23.3]} 35... e4 {[%clk
0:00:13.2]} 36. Bd7 {[%clk 0:01:22.7]} 1-0

[Event "Early-Titled-Tuesday-Blitz-February-06-2024"]
[Site "Chess.com"]
[Date "2024.02.06"]
[Round "6"]
[White "salomez"]
[Black "NtcPou"]
[Result "1-0"]
[WhiteElo "2298"]
[BlackElo "2014"]
[TimeControl "180+1"]
[EndTime "9:06:09 PST"]
[Termination "salomez won by resignation"]

1. e4 {[%clk 0:03:00.9]} 1... c6 {[%clk 0:02:38.9]} 2. d4 {[%clk 0:02:56.5]}
2... d5 {[%clk 0:02:38.8]} 3. exd5 {[%clk 0:02:54]} 3... cxd5 {[%clk 0:02:38.8]}
4. Bd3 {[%clk 0:02:54.9]} 4... Nc6 {[%clk 0:02:37.4]} 5. c3 {[%clk 0:02:54.3]}
5... Qc7 {[%clk 0:02:36.8]} 6. h3 {[%clk 0:02:49.3]} 6... Nf6 {[%clk 0:02:27.2]}
7. Nf3 {[%clk 0:02:47.5]} 7... g6 {[%clk 0:02:26.1]} 8. O-O {[%clk 0:02:45.6]}
8... Bg7 {[%clk 0:02:25.7]} 9. Re1 {[%clk 0:02:41.2]} 9... Bf5 {[%clk
0:02:25.7]} 10. Bf1 {[%clk 0:02:34.1]} 10... O-O {[%clk 0:02:24.4]} 11. Bg5
{[%clk 0:02:34]} 11... Ne4 {[%clk 0:02:19.6]} 12. Bh4 {[%clk 0:02:31.5]} 12...
h6 {[%clk 0:02:14.8]} 13. Nbd2 {[%clk 0:02:27.7]} 13... g5 {[%clk 0:01:46.7]}
14. Nxe4 {[%clk 0:02:08.4]} 14... Bxe4 {[%clk 0:01:43.4]} 15. Bg3 {[%clk
0:02:05.6]} 15... Qd7 {[%clk 0:01:42.5]} 16. Ne5 {[%clk 0:01:58.9]} 16... Nxe5
{[%clk 0:01:41.9]} 17. dxe5 {[%clk 0:01:58.9]} 17... e6 {[%clk 0:01:39.8]} 18.
Rxe4 {[%clk 0:01:58.3]} 18... Qc6 {[%clk 0:01:28.8]} 19. Rd4 {[%clk 0:01:53]}
19... Rac8 {[%clk 0:01:27.1]} 20. h4 {[%clk 0:01:45.5]} 20... Qc7 {[%clk
0:01:24.8]} 21. hxg5 {[%clk 0:01:44.5]} 21... hxg5 {[%clk 0:01:25.7]} 22. Qg4
{[%clk 0:01:43]} 22... Qe7 {[%clk 0:01:23.9]} 23. f4 {[%clk 0:01:39.1]} 23... f6
{[%clk 0:01:13.2]} 24. Re1 {[%clk 0:01:28.4]} 24... f5 {[%clk 0:01:11.7]} 25.
Qxg5 {[%clk 0:01:27]} 25... Qxg5 {[%clk 0:01:11.9]} 26. fxg5 {[%clk 0:01:27.9]}
26... Rf7 {[%clk 0:01:10.7]} 27. c4 {[%clk 0:01:19.7]} 27... dxc4 {[%clk
0:00:45.7]} 28. Bxc4 {[%clk 0:01:20.6]} 28... Rc6 {[%clk 0:00:42.4]} 29. g6
{[%clk 0:01:04.5]} 29... Rf8 {[%clk 0:00:40.4]} 30. b3 {[%clk 0:00:59.3]} 30...
a6 {[%clk 0:00:39.5]} 31. Rd6 {[%clk 0:00:57.9]} 31... Rxd6 {[%clk 0:00:38.5]}
32. exd6 {[%clk 0:00:57.8]} 1-0

[Event "Early-Titled-Tuesday-Blitz-February-06-2024"]
[Site "Chess.com"]
[Date "2024.02.06"]
[Round "6"]
[White "ValentinDragnev"]
[Black "Harsha_Bharathakoti"]
[Result "0-1"]
[WhiteElo "2761"]
[BlackElo "2934"]
[TimeControl "180+1"]
[EndTime "9:06:11 PST"]
[Termination "Harsha_Bharathakoti won by resignation"]

1. d4 {[%clk 0:03:00.9]} 1... d5 {[%clk 0:02:44.3]} 2. Nf3 {[%clk 0:03:01.3]}
2... Nf6 {[%clk 0:02:44]} 3. Bf4 {[%clk 0:03:01.8]} 3... e6 {[%clk 0:02:44.1]}
4. e3 {[%clk 0:03:02.2]} 4... Bd6 {[%clk 0:02:44.6]} 5. Nbd2 {[%clk 0:03:02.3]}
5... O-O {[%clk 0:02:44.8]} 6. c3 {[%clk 0:03:02.4]} 6... c5 {[%clk 0:02:44.1]}
7. Ne5 {[%clk 0:03:02.1]} 7... Nc6 {[%clk 0:02:40.1]} 8. Bd3 {[%clk 0:02:40.5]}
8... Qc7 {[%clk 0:02:39.5]} 9. Ndf3 {[%clk 0:02:18.6]} 9... cxd4 {[%clk
0:02:16.1]} 10. exd4 {[%clk 0:02:18.2]} 10... Ne4 {[%clk 0:02:08.4]} 11. Bg3
{[%clk 0:02:06.1]} 11... Ne7 {[%clk 0:02:03.8]} 12. Qe2 {[%clk 0:02:01.2]} 12...
f6 {[%clk 0:01:40.4]} 13. Ng4 {[%clk 0:01:59.5]} 13... Bd7 {[%clk 0:01:29.1]}
14. Bxe4 {[%clk 0:01:39.3]} 14... dxe4 {[%clk 0:01:29]} 15. Bxd6 {[%clk
0:01:39.7]} 15... Qxd6 {[%clk 0:01:29.9]} 16. Qxe4 {[%clk 0:01:39.4]} 16... f5
{[%clk 0:01:30.7]} 17. Qe5 {[%clk 0:01:39.8]} 17... Qa6 {[%clk 0:01:31.5]} 18.
Ne3 {[%clk 0:01:35.7]} 18... Ng6 {[%clk 0:01:31.8]} 19. Qc7 {[%clk 0:01:20.5]}
19... Rac8 {[%clk 0:01:06.2]} 20. Qxd7 {[%clk 0:00:57.6]} 20... Rfd8 {[%clk
0:01:06.5]} 21. Qxd8+ {[%clk 0:00:34.1]} 21... Rxd8 {[%clk 0:01:06.8]} 22. g3
{[%clk 0:00:35]} 22... f4 {[%clk 0:00:58.5]} 23. Ng4 {[%clk 0:00:28.7]} 23...
Qc6 {[%clk 0:00:47.9]} 24. Ke2 {[%clk 0:00:27.2]} 24... Qe4+ {[%clk 0:00:47.8]}
0-1

[Event "Early-Titled-Tuesday-Blitz-February-06-2024"]
[Site "Chess.com"]
[Date "2024.02.06"]
[Round "6"]
[White "DevikBronstein"]
[Black "Ranindu2003"]
[Result "1-0"]
[WhiteElo "2910"]
[BlackElo "2721"]
[TimeControl "180+1"]
[EndTime "9:06:11 PST"]
[Termination "DevikBronstein won by resignation"]

1. Nf3 {[%clk 0:03:00.9]} 1... d5 {[%clk 0:02:59]} 2. g3 {[%clk 0:03:00.8]} 2...
g6 {[%clk 0:02:59]} 3. Bg2 {[%clk 0:02:58]} 3... Bg7 {[%clk 0:02:59.6]} 4. d4
{[%clk 0:02:57.4]} 4... Nf6 {[%clk 0:02:59.8]} 5. c4 {[%clk 0:02:54.5]} 5... c6
{[%clk 0:02:59]} 6. Qb3 {[%clk 0:02:52.1]} 6... O-O {[%clk 0:02:55]} 7. Nc3
{[%clk 0:02:51.5]} 7... dxc4 {[%clk 0:02:53.8]} 8. Qxc4 {[%clk 0:02:51]} 8... b5
{[%clk 0:02:53.6]} 9. Qb3 {[%clk 0:02:40.6]} 9... a5 {[%clk 0:02:53.2]} 10. O-O
{[%clk 0:02:34.4]} 10... a4 {[%clk 0:02:49.4]} 11. Qc2 {[%clk 0:02:32.1]} 11...
Nd5 {[%clk 0:02:22.5]} 12. Nxd5 {[%clk 0:02:30.2]} 12... cxd5 {[%clk 0:02:20.7]}
13. Bf4 {[%clk 0:02:26.4]} 13... Bf5 {[%clk 0:02:18.2]} 14. Qd2 {[%clk 0:02:26]}
14... Nc6 {[%clk 0:02:15.7]} 15. Rfc1 {[%clk 0:02:25.7]} 15... Qb6 {[%clk
0:02:07.9]} 16. e3 {[%clk 0:01:26.9]} 16... Rac8 {[%clk 0:01:59.4]} 17. Rc5
{[%clk 0:01:16.2]} 17... Na5 {[%clk 0:01:28.9]} 18. Qb4 {[%clk 0:01:15.1]} 18...
Bd3 {[%clk 0:01:09.3]} 19. Rac1 {[%clk 0:01:08.2]} 19... Nc4 {[%clk 0:00:55.6]}
20. Rxc8 {[%clk 0:00:39.9]} 20... Rxc8 {[%clk 0:00:52.4]} 21. b3 {[%clk
0:00:40]} 21... axb3 {[%clk 0:00:45.7]} 22. axb3 {[%clk 0:00:39.2]} 22... Nd6
{[%clk 0:00:46.1]} 23. Rxc8+ {[%clk 0:00:35.7]} 23... Nxc8 {[%clk 0:00:47]} 24.
Ne5 {[%clk 0:00:36.2]} 24... e6 {[%clk 0:00:44.6]} 25. Nxd3 {[%clk 0:00:36]} 1-0